[Event "Early-Titled-Tuesday-Blitz-April-23-2024"]
[Site "Chess.com"]
[Date "2024.04.23"]
[Round "4"]
[White "NMChessToImpress"]
[Black "lagedema"]
[Result "1-0"]
[WhiteElo "2228"]
[BlackElo "2401"]
[TimeControl "180+1"]
[EndTime "8:40:25 PDT"]
[Termination "NMChessToImpress won by resignation"]

1. e4 {[%clk 0:03:00.9]} 1... c5 {[%clk 0:02:58.4]} 2. Nf3 {[%clk 0:03:01.3]}
2... d6 {[%clk 0:02:58.9]} 3. d4 {[%clk 0:03:02]} 3... cxd4 {[%clk 0:02:59.8]}
4. Nxd4 {[%clk 0:03:02.7]} 4... Nf6 {[%clk 0:03:00.6]} 5. Nc3 {[%clk 0:03:03.3]}
5... a6 {[%clk 0:03:01.2]} 6. Be3 {[%clk 0:03:03.9]} 6... e6 {[%clk 0:02:57.2]}
7. f3 {[%clk 0:03:00.8]} 7... b5 {[%clk 0:02:54]} 8. a3 {[%clk 0:03:00.5]} 8...
Bb7 {[%clk 0:02:53.7]} 9. Qd2 {[%clk 0:02:58.8]} 9... Nbd7 {[%clk 0:02:53.7]}
10. g4 {[%clk 0:02:58.4]} 10... Rc8 {[%clk 0:02:52.3]} 11. g5 {[%clk 0:02:53.2]}
11... Nh5 {[%clk 0:02:50.7]} 12. O-O-O {[%clk 0:02:53.8]} 12... Nb6 {[%clk
0:02:48.4]} 13. Kb1 {[%clk 0:02:43.5]} 13... Nc4 {[%clk 0:02:46.5]} 14. Bxc4
{[%clk 0:02:43.5]} 14... Rxc4 {[%clk 0:02:41.9]} 15. f4 {[%clk 0:02:22.9]} 15...
Be7 {[%clk 0:02:20.4]} 16. Rhg1 {[%clk 0:01:54.6]} 16... O-O {[%clk 0:02:02.6]}
17. f5 {[%clk 0:01:42.4]} 17... e5 {[%clk 0:02:02.3]} 18. f6 {[%clk 0:01:27]}
18... exd4 {[%clk 0:01:55.5]} 19. Bxd4 {[%clk 0:01:16.3]} 19... Re8 {[%clk
0:01:45.7]} 20. fxe7 {[%clk 0:01:07.5]} 20... Qxe7 {[%clk 0:01:46.6]} 21. Nd5
{[%clk 0:00:55.6]} 21... Bxd5 {[%clk 0:01:46.6]} 22. exd5 {[%clk 0:00:55.8]}
22... Qd7 {[%clk 0:01:32.9]} 23. b3 {[%clk 0:00:29.1]} 23... Rcc8 {[%clk
0:01:23.3]} 24. Rde1 {[%clk 0:00:29.2]} 24... Qf5 {[%clk 0:01:15.7]} 25. Bb2
{[%clk 0:00:23.9]} 25... Nf4 {[%clk 0:01:09.5]} 26. Ref1 {[%clk 0:00:16.6]}
26... Re4 {[%clk 0:00:57.3]} 27. Bc1 {[%clk 0:00:16.1]} 27... Re2 {[%clk
0:00:08.6]} 28. Rxf4 {[%clk 0:00:13.6]} 28... Qxc2+ {[%clk 0:00:04.1]} 29. Qxc2
{[%clk 0:00:12.4]} 29... Rcxc2 {[%clk 0:00:05]} 30. h4 {[%clk 0:00:09.5]} 30...
a5 {[%clk 0:00:02.8]} 31. Rgf1 {[%clk 0:00:09.2]} 31... Rc3 {[%clk 0:00:02.5]}
32. R4f3 {[%clk 0:00:08.8]} 32... Rxf3 {[%clk 0:00:01.9]} 33. Rxf3 {[%clk
0:00:08.8]} 33... Rh2 {[%clk 0:00:02.8]} 34. Rf4 {[%clk 0:00:08.3]} 34... f6
{[%clk 0:00:02.5]} 35. Re4 {[%clk 0:00:07.6]} 35... f5 {[%clk 0:00:02]} 36. Re8+
{[%clk 0:00:06.6]} 36... Kf7 {[%clk 0:00:02.7]} 37. Rd8 {[%clk 0:00:07]} 37...
Ke7 {[%clk 0:00:02.5]} 38. Rb8 {[%clk 0:00:06.6]} 38... f4 {[%clk 0:00:02.6]}
39. Rb7+ {[%clk 0:00:06.4]} 39... Kf8 {[%clk 0:00:01.5]} 40. Bxf4 {[%clk
0:00:06.5]} 40... Rh1+ {[%clk 0:00:02.3]} 41. Kc2 {[%clk 0:00:06.5]} 41... Rxh4
{[%clk 0:00:03]} 42. Bxd6+ {[%clk 0:00:05.9]} 42... Ke8 {[%clk 0:00:03.9]} 43.
Rxg7 {[%clk 0:00:05.2]} 43... Kd8 {[%clk 0:00:04.8]} 44. Be7+ {[%clk 0:00:04.8]}
44... Kd7 {[%clk 0:00:03.9]} 45. g6 {[%clk 0:00:04.2]} 45... Rh6 {[%clk
0:00:03.5]} 46. Bg5+ {[%clk 0:00:03.8]} 46... Ke8 {[%clk 0:00:02.9]} 47. Bxh6
{[%clk 0:00:04.7]} 47... Kf8 {[%clk 0:00:03.8]} 48. Rxh7+ {[%clk 0:00:04.9]} 1-0

[Event "Early-Titled-Tuesday-Blitz-April-23-2024"]
[Site "Chess.com"]
[Date "2024.04.23"]
[Round "4"]
[White "Zhigalko_Sergei"]
[Black "AlphaGoosee"]
[Result "1-0"]
[WhiteElo "2934"]
[BlackElo "2627"]
[TimeControl "180+1"]
[EndTime "8:40:32 PDT"]
[Termination "Zhigalko_Sergei won by resignation"]

1. e4 {[%clk 0:03:00.9]} 1... c5 {[%clk 0:03:00.6]} 2. Nf3 {[%clk 0:03:00.6]}
2... d6 {[%clk 0:03:01.3]} 3. d4 {[%clk 0:02:55.3]} 3... cxd4 {[%clk 0:03:02.2]}
4. Qxd4 {[%clk 0:02:56]} 4... Nc6 {[%clk 0:03:02.2]} 5. Bb5 {[%clk 0:02:55.8]}
5... a6 {[%clk 0:03:00.8]} 6. Bxc6+ {[%clk 0:02:55.8]} 6... bxc6 {[%clk
0:03:01.7]} 7. c4 {[%clk 0:02:55.8]} 7... e5 {[%clk 0:03:01.6]} 8. Qd3 {[%clk
0:02:55.7]} 8... Qc7 {[%clk 0:03:02.2]} 9. O-O {[%clk 0:02:54.8]} 9... Ne7
{[%clk 0:03:02.3]} 10. Be3 {[%clk 0:02:44.3]} 10... Ng6 {[%clk 0:03:01.9]} 11.
c5 {[%clk 0:02:44.3]} 11... dxc5 {[%clk 0:02:57.4]} 12. Qc2 {[%clk 0:02:40.5]}
12... Bg4 {[%clk 0:02:39.4]} 13. Nbd2 {[%clk 0:02:39.7]} 13... Rb8 {[%clk
0:02:32.7]} 14. h3 {[%clk 0:02:20]} 14... Bxf3 {[%clk 0:02:17.5]} 15. Nxf3
{[%clk 0:02:20.9]} 15... Be7 {[%clk 0:02:15.5]} 16. b3 {[%clk 0:02:17.3]} 16...
Rb5 {[%clk 0:02:12.2]} 17. a4 {[%clk 0:02:07.6]} 17... Rb8 {[%clk 0:02:11.5]}
18. Bxc5 {[%clk 0:02:01.1]} 18... O-O {[%clk 0:02:11.2]} 19. Be3 {[%clk
0:01:56.4]} 19... Rb4 {[%clk 0:02:03.6]} 20. Rac1 {[%clk 0:01:52.2]} 20... Rc8
{[%clk 0:02:01.6]} 21. Rfd1 {[%clk 0:01:42]} 21... h6 {[%clk 0:01:59.9]} 22. Nd2
{[%clk 0:01:28.6]} 22... Qb7 {[%clk 0:01:44.6]} 23. Nc4 {[%clk 0:01:28.3]} 23...
Qc7 {[%clk 0:01:32.7]} 24. Rd3 {[%clk 0:01:26]} 24... Nf4 {[%clk 0:01:30.4]} 25.
Bxf4 {[%clk 0:01:24.3]} 25... exf4 {[%clk 0:01:31.3]} 26. Rcd1 {[%clk
0:01:20.7]} 26... Rb7 {[%clk 0:01:29.6]} 27. Rd7 {[%clk 0:01:03.7]} 27... Qb8
{[%clk 0:01:29]} 28. e5 {[%clk 0:00:58.7]} 28... Rxd7 {[%clk 0:00:52.3]} 29.
Rxd7 {[%clk 0:00:58.3]} 29... Rc7 {[%clk 0:00:53.1]} 30. Rd3 {[%clk 0:00:47.5]}
30... Bb4 {[%clk 0:00:42]} 31. Qd1 {[%clk 0:00:35.5]} 31... Rc8 {[%clk 0:00:42]}
32. Rd7 {[%clk 0:00:29.8]} 32... Rf8 {[%clk 0:00:35.8]} 33. Qf3 {[%clk
0:00:25.8]} 33... Bc5 {[%clk 0:00:24.1]} 34. Rd3 {[%clk 0:00:23.1]} 34... Qb4
{[%clk 0:00:21.6]} 35. Qe4 {[%clk 0:00:17.8]} 35... Rb8 {[%clk 0:00:17.8]} 36.
e6 {[%clk 0:00:16.1]} 36... fxe6 {[%clk 0:00:17.1]} 37. Qxe6+ {[%clk 0:00:17]}
37... Kh8 {[%clk 0:00:17.9]} 38. Qe4 {[%clk 0:00:10]} 38... Rf8 {[%clk
0:00:16.6]} 39. Rf3 {[%clk 0:00:07.4]} 39... Qb8 {[%clk 0:00:11.3]} 40. Ne5
{[%clk 0:00:07.3]} 40... Re8 {[%clk 0:00:09.9]} 41. Ng6+ {[%clk 0:00:05.8]}
41... Kh7 {[%clk 0:00:09.6]} 42. Qc2 {[%clk 0:00:04.8]} 42... Kg8 {[%clk
0:00:07.2]} 43. Qxc5 {[%clk 0:00:04.3]} 43... Re1+ {[%clk 0:00:06.8]} 44. Kh2
{[%clk 0:00:04.4]} 44... Qe8 {[%clk 0:00:07.7]} 45. Qc4+ {[%clk 0:00:04]} 45...
Kh7 {[%clk 0:00:07.3]} 46. Nxf4 {[%clk 0:00:04.5]} 46... Re4 {[%clk 0:00:07.9]}
47. Qd3 {[%clk 0:00:04.5]} 47... Qe5 {[%clk 0:00:08.2]} 48. g3 {[%clk 0:00:05]}
48... g5 {[%clk 0:00:08.5]} 49. Re3 {[%clk 0:00:05]} 49... gxf4 {[%clk
0:00:08.1]} 50. Qxe4+ {[%clk 0:00:05.2]} 50... Qxe4 {[%clk 0:00:08.7]} 51. Rxe4
{[%clk 0:00:06.1]} 51... fxg3+ {[%clk 0:00:09.6]} 52. fxg3 {[%clk 0:00:06.5]}
1-0

[Event "Early-Titled-Tuesday-Blitz-April-23-2024"]
[Site "Chess.com"]
[Date "2024.04.23"]
[Round "4"]
[White "thesupera12"]
[Black "temiksmozg"]
[Result "1/2-1/2"]
[WhiteElo "2444"]
[BlackElo "2659"]
[TimeControl "180+1"]
[EndTime "8:40:32 PDT"]
[Termination "Game drawn by agreement"]

1. d4 {[%clk 0:02:59.9]} 1... d5 {[%clk 0:02:59.1]} 2. c4 {[%clk 0:02:59.8]}
2... e6 {[%clk 0:02:58.2]} 3. Nc3 {[%clk 0:02:59.9]} 3... Nf6 {[%clk 0:02:57]}
4. Nf3 {[%clk 0:03:00.3]} 4... Be7 {[%clk 0:02:55.4]} 5. g3 {[%clk 0:03:00.1]}
5... dxc4 {[%clk 0:02:55.5]} 6. Qa4+ {[%clk 0:02:58.8]} 6... Bd7 {[%clk
0:02:53]} 7. Qxc4 {[%clk 0:02:59.2]} 7... Bc6 {[%clk 0:02:53.4]} 8. Bg2 {[%clk
0:02:59.5]} 8... Nbd7 {[%clk 0:02:53.6]} 9. O-O {[%clk 0:02:59.4]} 9... O-O
{[%clk 0:02:53.5]} 10. Rd1 {[%clk 0:02:56.1]} 10... a6 {[%clk 0:02:53.7]} 11.
Bg5 {[%clk 0:02:54.6]} 11... h6 {[%clk 0:02:53.5]} 12. Bxf6 {[%clk 0:02:51.2]}
12... Bxf6 {[%clk 0:02:54.4]} 13. Ne5 {[%clk 0:02:49.3]} 13... Bxg2 {[%clk
0:02:55.3]} 14. Nxd7 {[%clk 0:02:30.2]} 14... Bc6 {[%clk 0:02:46.2]} 15. Nxf6+
{[%clk 0:02:25]} 15... Qxf6 {[%clk 0:02:47.1]} 16. Rac1 {[%clk 0:02:16.4]} 16...
Rad8 {[%clk 0:02:44.9]} 17. d5 {[%clk 0:02:11.7]} 17... exd5 {[%clk 0:02:43.4]}
18. Nxd5 {[%clk 0:02:12.6]} 18... Bxd5 {[%clk 0:02:39.2]} 19. Rxd5 {[%clk
0:02:12.6]} 19... Rxd5 {[%clk 0:02:39.7]} 20. Qxd5 {[%clk 0:02:12.6]} 20... Qxb2
{[%clk 0:02:40.4]} 21. Rxc7 {[%clk 0:02:12.6]} 21... Qxe2 {[%clk 0:02:40.4]} 22.
Rxb7 {[%clk 0:02:10.4]} 22... Kh8 {[%clk 0:02:36.8]} 23. Rxf7 {[%clk 0:02:06.7]}
23... Rc8 {[%clk 0:02:34.6]} 24. Kg2 {[%clk 0:01:49.5]} 24... Qb5 {[%clk
0:02:18.2]} 25. Qf3 {[%clk 0:01:28.4]} 25... Qb1 {[%clk 0:01:51.9]} 26. a3
{[%clk 0:01:10.9]} 26... Rc1 {[%clk 0:01:34.4]} 27. Rf8+ {[%clk 0:01:09.6]}
27... Kh7 {[%clk 0:01:33.4]} 28. Qf7 {[%clk 0:00:55.3]} 28... Rg1+ {[%clk
0:01:31]} 29. Kh3 {[%clk 0:00:55.5]} 29... Qf1+ {[%clk 0:01:25.7]} 30. Kh4
{[%clk 0:00:54.2]} 30... Qd3 {[%clk 0:01:25.1]} 31. Qf5+ {[%clk 0:00:43.8]}
31... Qxf5 {[%clk 0:01:24.3]} 32. Rxf5 {[%clk 0:00:44.7]} 32... Ra1 {[%clk
0:01:20.6]} 33. Ra5 {[%clk 0:00:44.2]} 33... Ra2 {[%clk 0:01:20.9]} 34. f4
{[%clk 0:00:35.5]} 34... Rxh2+ {[%clk 0:01:19.7]} 35. Kg4 {[%clk 0:00:36.2]}
35... Ra2 {[%clk 0:01:16.4]} 36. Rxa6 {[%clk 0:00:36.3]} 36... Ra1 {[%clk
0:01:16.9]} 37. a4 {[%clk 0:00:36.4]} 37... Ra3 {[%clk 0:01:16.4]} 38. a5 {[%clk
0:00:36.4]} 38... Kg8 {[%clk 0:01:11.8]} 39. Ra7 {[%clk 0:00:36.7]} 39... Kf8
{[%clk 0:01:10.1]} 40. a6 {[%clk 0:00:37]} 40... Kg8 {[%clk 0:01:10.3]} 41. Kh4
{[%clk 0:00:37.1]} 41... Ra4 {[%clk 0:01:09.5]} 42. Kg4 {[%clk 0:00:35.9]} 42...
Ra3 {[%clk 0:01:09.7]} 43. Ra8+ {[%clk 0:00:34.5]} 43... Kf7 {[%clk 0:01:09.5]}
44. a7 {[%clk 0:00:34.5]} 44... Kg6 {[%clk 0:01:10]} 45. Kh4 {[%clk 0:00:31.8]}
45... Ra4 {[%clk 0:00:53]} 46. g4 {[%clk 0:00:30.7]} 46... Ra3 {[%clk
0:00:53.2]} 47. f5+ {[%clk 0:00:28.5]} 47... Kh7 {[%clk 0:00:53.7]} 48. g5
{[%clk 0:00:24.3]} 48... Ra4+ {[%clk 0:00:44.4]} 49. Kh5 {[%clk 0:00:24]} 49...
hxg5 {[%clk 0:00:45.3]} 50. Kxg5 {[%clk 0:00:24.3]} 50... Ra1 {[%clk 0:00:44.6]}
51. Kf4 {[%clk 0:00:24.3]} 51... Ra2 {[%clk 0:00:43.7]} 52. Ke5 {[%clk
0:00:24.6]} 52... Ra1 {[%clk 0:00:44.2]} 53. Ke6 {[%clk 0:00:24.9]} 53... Ra2
{[%clk 0:00:43.9]} 54. Kf7 {[%clk 0:00:25]} 54... Ra6 {[%clk 0:00:42.6]} 55. Ke7
{[%clk 0:00:22.4]} 55... Ra1 {[%clk 0:00:40.8]} 56. Kd7 {[%clk 0:00:21.5]} 56...
Rd1+ {[%clk 0:00:40.3]} 57. Kc6 {[%clk 0:00:22.1]} 57... Rc1+ {[%clk 0:00:40.5]}
58. Kd5 {[%clk 0:00:22.5]} 58... Rd1+ {[%clk 0:00:40.9]} 59. Ke6 {[%clk
0:00:22.7]} 59... Ra1 {[%clk 0:00:39.5]} 60. Kf7 {[%clk 0:00:20.9]} 60... Ra6
{[%clk 0:00:39.1]} 61. Ke7 {[%clk 0:00:20.4]} 61... Ra1 {[%clk 0:00:38.7]} 62.
f6 {[%clk 0:00:20.2]} 62... gxf6 {[%clk 0:00:36.4]} 63. Kxf6 {[%clk 0:00:20.4]}
63... Ra2 {[%clk 0:00:35.9]} 64. Ke5 {[%clk 0:00:20.5]} 64... Ra1 {[%clk
0:00:36.1]} 65. Kd4 {[%clk 0:00:21.2]} 65... Ra2 {[%clk 0:00:36.4]} 66. Kc3
{[%clk 0:00:21.9]} 66... Ra1 {[%clk 0:00:36.3]} 67. Kb4 {[%clk 0:00:22.4]} 67...
Rb1+ {[%clk 0:00:36.3]} 68. Kc5 {[%clk 0:00:22.9]} 68... Rc1+ {[%clk 0:00:35.8]}
69. Kd4 {[%clk 0:00:23.6]} 69... Rd1+ {[%clk 0:00:35.6]} 70. Kc3 {[%clk
0:00:24]} 70... Ra1 {[%clk 0:00:36.2]} 71. Kb2 {[%clk 0:00:24.5]} 71... Ra6
{[%clk 0:00:36.5]} 1/2-1/2

[Event "Early-Titled-Tuesday-Blitz-April-23-2024"]
[Site "Chess.com"]
[Date "2024.04.23"]
[Round "4"]
[White "ural58"]
[Black "biostatistician"]
[Result "1-0"]
[WhiteElo "2573"]
[BlackElo "2743"]
[TimeControl "180+1"]
[EndTime "8:40:34 PDT"]
[Termination "ural58 won on time"]

1. e4 {[%clk 0:02:56.7]} 1... e5 {[%clk 0:02:59.9]} 2. Nf3 {[%clk 0:02:55.5]}
2... Nc6 {[%clk 0:03:00.1]} 3. Bc4 {[%clk 0:02:55.5]} 3... Bc5 {[%clk
0:02:59.7]} 4. b4 {[%clk 0:02:54.2]} 4... Bxb4 {[%clk 0:02:58.8]} 5. c3 {[%clk
0:02:54.5]} 5... Be7 {[%clk 0:02:59]} 6. d4 {[%clk 0:02:54.2]} 6... Na5 {[%clk
0:02:59.1]} 7. Be2 {[%clk 0:02:54.2]} 7... d6 {[%clk 0:02:58.1]} 8. Qa4+ {[%clk
0:02:54.1]} 8... c6 {[%clk 0:02:57.9]} 9. dxe5 {[%clk 0:02:54.7]} 9... dxe5
{[%clk 0:02:57.1]} 10. Nxe5 {[%clk 0:02:55.3]} 10... Nf6 {[%clk 0:02:57.2]} 11.
Bf4 {[%clk 0:02:47.9]} 11... O-O {[%clk 0:02:50.5]} 12. Nd2 {[%clk 0:02:47.8]}
12... b5 {[%clk 0:02:26.8]} 13. Qc2 {[%clk 0:02:46.8]} 13... a6 {[%clk
0:02:19.8]} 14. O-O {[%clk 0:02:45.8]} 14... Be6 {[%clk 0:02:15.7]} 15. a4
{[%clk 0:02:41.8]} 15... Qc8 {[%clk 0:02:03.3]} 16. h3 {[%clk 0:02:30.8]} 16...
Rd8 {[%clk 0:01:59.3]} 17. Rab1 {[%clk 0:02:20.5]} 17... Nd7 {[%clk 0:01:52.8]}
18. Ndf3 {[%clk 0:02:02.3]} 18... Nxe5 {[%clk 0:01:47.3]} 19. Nxe5 {[%clk
0:02:02.2]} 19... f6 {[%clk 0:01:43.7]} 20. Nf3 {[%clk 0:01:49.3]} 20... Nc4
{[%clk 0:01:43.8]} 21. Rbd1 {[%clk 0:01:36.8]} 21... Qb7 {[%clk 0:01:29.4]} 22.
e5 {[%clk 0:01:35.3]} 22... fxe5 {[%clk 0:01:09.4]} 23. Nxe5 {[%clk 0:01:34.3]}
23... Nxe5 {[%clk 0:01:07.7]} 24. Bxe5 {[%clk 0:01:34.2]} 24... Bd5 {[%clk
0:00:55.9]} 25. Bd3 {[%clk 0:01:30.2]} 25... h6 {[%clk 0:00:47.2]} 26. Bh7+
{[%clk 0:01:29.7]} 26... Kh8 {[%clk 0:00:47.4]} 27. Qg6 {[%clk 0:01:28.2]} 27...
Bg5 {[%clk 0:00:25.5]} 28. f4 {[%clk 0:01:24]} 28... Qe7 {[%clk 0:00:19.5]} 29.
Rde1 {[%clk 0:01:20.6]} 29... Bf6 {[%clk 0:00:14.7]} 30. Bd4 {[%clk 0:01:17.9]}
30... Qf7 {[%clk 0:00:11.6]} 31. Qxf7 {[%clk 0:01:12.5]} 31... Bxf7 {[%clk
0:00:12.5]} 32. Bxf6 {[%clk 0:01:11.6]} 32... gxf6 {[%clk 0:00:13.4]} 33. Be4
{[%clk 0:01:11.3]} 33... Bd5 {[%clk 0:00:12.5]} 34. Bxd5 {[%clk 0:01:05.8]}
34... Rxd5 {[%clk 0:00:11.3]} 35. Re6 {[%clk 0:01:06.3]} 35... Rc5 {[%clk
0:00:11]} 36. axb5 {[%clk 0:01:01.7]} 36... axb5 {[%clk 0:00:10.6]} 37. Rf3
{[%clk 0:01:01.2]} 37... Kg7 {[%clk 0:00:10.1]} 38. Rd6 {[%clk 0:00:55.5]} 38...
Ra3 {[%clk 0:00:08.8]} 39. Rd7+ {[%clk 0:00:54.2]} 39... Kg6 {[%clk 0:00:07.4]}
40. Rdd3 {[%clk 0:00:32.6]} 40... h5 {[%clk 0:00:07.1]} 41. g4 {[%clk 0:00:32]}
41... hxg4 {[%clk 0:00:07.3]} 42. hxg4 {[%clk 0:00:32.6]} 42... Rc4 {[%clk
0:00:07.1]} 43. Kf2 {[%clk 0:00:32.4]} 43... c5 {[%clk 0:00:07.2]} 44. Kg3
{[%clk 0:00:29.8]} 44... b4 {[%clk 0:00:06.4]} 45. cxb4 {[%clk 0:00:29.1]} 45...
Rxd3 {[%clk 0:00:06.5]} 46. Rxd3 {[%clk 0:00:29.5]} 46... cxb4 {[%clk
0:00:07.4]} 47. Rd8 {[%clk 0:00:27.1]} 47... b3 {[%clk 0:00:05.4]} 48. Rb8
{[%clk 0:00:26.1]} 48... Rc3+ {[%clk 0:00:05.5]} 49. Kh4 {[%clk 0:00:26.4]}
49... Rf3 {[%clk 0:00:06]} 50. f5+ {[%clk 0:00:26.1]} 50... Kf7 {[%clk
0:00:05.5]} 51. Rb7+ {[%clk 0:00:25.6]} 51... Kf8 {[%clk 0:00:02.7]} 52. Kh5
{[%clk 0:00:26.3]} 52... Rg3 {[%clk 0:00:01.2]} 53. Kg6 {[%clk 0:00:26.2]} 53...
Rxg4+ {[%clk 0:00:01.5]} 54. Kxf6 {[%clk 0:00:26.8]} 1-0

[Event "Early-Titled-Tuesday-Blitz-April-23-2024"]
[Site "Chess.com"]
[Date "2024.04.23"]
[Round "4"]
[White "Let_it_be_1"]
[Black "duone"]
[Result "1/2-1/2"]
[WhiteElo "2635"]
[BlackElo "2432"]
[TimeControl "180+1"]
[EndTime "8:40:34 PDT"]
[Termination "Game drawn by stalemate"]

1. e4 {[%clk 0:03:00.9]} 1... c5 {[%clk 0:02:56.9]} 2. Nf3 {[%clk 0:03:00.7]}
2... e6 {[%clk 0:02:54.5]} 3. d4 {[%clk 0:03:00.7]} 3... cxd4 {[%clk 0:02:54.6]}
4. Nxd4 {[%clk 0:03:01.6]} 4... Nc6 {[%clk 0:02:52]} 5. Nc3 {[%clk 0:03:01.7]}
5... Nf6 {[%clk 0:02:51.8]} 6. Ndb5 {[%clk 0:03:01.6]} 6... Bc5 {[%clk
0:02:51.5]} 7. Nd6+ {[%clk 0:03:01]} 7... Ke7 {[%clk 0:02:51.2]} 8. Bf4 {[%clk
0:03:01]} 8... e5 {[%clk 0:02:51.5]} 9. Nf5+ {[%clk 0:03:01]} 9... Kf8 {[%clk
0:02:51.6]} 10. Bg5 {[%clk 0:03:01.4]} 10... Bb4 {[%clk 0:02:51.9]} 11. Qd3
{[%clk 0:02:12.7]} 11... d5 {[%clk 0:02:46.7]} 12. Bxf6 {[%clk 0:02:09.1]} 12...
Qxf6 {[%clk 0:02:44.9]} 13. Qxd5 {[%clk 0:02:03]} 13... Bxf5 {[%clk 0:02:41.3]}
14. exf5 {[%clk 0:02:02.6]} 14... Rd8 {[%clk 0:02:38.5]} 15. Qe4 {[%clk
0:01:59.2]} 15... Rd4 {[%clk 0:02:28.9]} 16. Qe3 {[%clk 0:01:51.7]} 16... Qxf5
{[%clk 0:02:24.4]} 17. Bd3 {[%clk 0:01:50.1]} 17... e4 {[%clk 0:02:20.3]} 18.
Be2 {[%clk 0:01:48.7]} 18... Ke7 {[%clk 0:02:13.3]} 19. O-O {[%clk 0:01:45]}
19... Rhd8 {[%clk 0:02:12.4]} 20. Rad1 {[%clk 0:01:05.2]} 20... Kf8 {[%clk
0:02:04.8]} 21. Rxd4 {[%clk 0:00:45.2]} 21... Nxd4 {[%clk 0:02:01.6]} 22. Bd1
{[%clk 0:00:33.1]} 22... Bc5 {[%clk 0:01:39.2]} 23. Qxe4 {[%clk 0:00:31.6]}
23... Qxe4 {[%clk 0:01:29.8]} 24. Nxe4 {[%clk 0:00:31.9]} 24... Bb6 {[%clk
0:01:30.4]} 25. c3 {[%clk 0:00:31]} 25... Nc6 {[%clk 0:01:28.3]} 26. Bg4 {[%clk
0:00:24.9]} 26... g6 {[%clk 0:01:27.4]} 27. Ng5 {[%clk 0:00:20]} 27... Kg7
{[%clk 0:01:25.3]} 28. Rd1 {[%clk 0:00:19.4]} 28... h6 {[%clk 0:01:19.1]} 29.
Rxd8 {[%clk 0:00:17.6]} 29... Nxd8 {[%clk 0:01:18.3]} 30. Nh3 {[%clk 0:00:12.6]}
30... f5 {[%clk 0:01:16.4]} 31. Bf3 {[%clk 0:00:12.7]} 31... Bc7 {[%clk
0:01:14.6]} 32. g3 {[%clk 0:00:10.6]} 32... b6 {[%clk 0:01:14.9]} 33. Nf4 {[%clk
0:00:09.6]} 33... Bxf4 {[%clk 0:01:13.9]} 34. gxf4 {[%clk 0:00:10]} 34... Ne6
{[%clk 0:01:14.6]} 35. Kg2 {[%clk 0:00:06.8]} 35... Nxf4+ {[%clk 0:01:14.6]} 36.
Kg3 {[%clk 0:00:07.3]} 36... Nd3 {[%clk 0:01:15.2]} 37. b4 {[%clk 0:00:05.5]}
37... Nc1 {[%clk 0:01:15.2]} 38. a3 {[%clk 0:00:04.6]} 38... Kf6 {[%clk
0:01:14.8]} 39. c4 {[%clk 0:00:04.2]} 39... Ke6 {[%clk 0:01:13.5]} 40. Kf4
{[%clk 0:00:02.4]} 40... Nd3+ {[%clk 0:01:10.1]} 41. Ke3 {[%clk 0:00:02.6]}
41... Ne5 {[%clk 0:01:10.7]} 42. Bd5+ {[%clk 0:00:02.4]} 42... Kd6 {[%clk
0:01:11.1]} 43. h3 {[%clk 0:00:03.1]} 43... b5 {[%clk 0:01:10]} 44. Kd4 {[%clk
0:00:03.4]} 44... bxc4 {[%clk 0:01:10]} 45. Bxc4 {[%clk 0:00:03.7]} 45... g5
{[%clk 0:01:07.7]} 46. Bb3 {[%clk 0:00:02.5]} 46... h5 {[%clk 0:01:05.5]} 47. a4
{[%clk 0:00:02.6]} 47... g4 {[%clk 0:01:04.8]} 48. hxg4 {[%clk 0:00:01.9]} 48...
fxg4 {[%clk 0:01:03.8]} 49. Bc2 {[%clk 0:00:01.5]} 49... h4 {[%clk 0:01:03.4]}
50. Be4 {[%clk 0:00:01.7]} 50... h3 {[%clk 0:01:00.3]} 51. Ke3 {[%clk
0:00:01.9]} 51... h2 {[%clk 0:00:53.4]} 52. Bh1 {[%clk 0:00:02.2]} 52... Nf3
{[%clk 0:00:53]} 53. Kf4 {[%clk 0:00:02.3]} 53... Ne1 {[%clk 0:00:42.6]} 54. Kg3
{[%clk 0:00:02.2]} 54... Nd3 {[%clk 0:00:42.5]} 55. Kxh2 {[%clk 0:00:01.4]}
55... Nxf2 {[%clk 0:00:42.5]} 56. Bg2 {[%clk 0:00:01.9]} 56... Nd3 {[%clk
0:00:42.5]} 57. b5 {[%clk 0:00:01.8]} 57... Kc5 {[%clk 0:00:39.2]} 58. a5 {[%clk
0:00:01.7]} 58... Kxb5 {[%clk 0:00:39.1]} 59. Bf1 {[%clk 0:00:02]} 59... Kc4
{[%clk 0:00:36.1]} 60. Kg3 {[%clk 0:00:02.3]} 60... Kd4 {[%clk 0:00:34.7]} 61.
Bxd3 {[%clk 0:00:01.2]} 61... Kxd3 {[%clk 0:00:35.1]} 62. Kxg4 {[%clk
0:00:02.1]} 62... Kc4 {[%clk 0:00:35.7]} 63. Kf3 {[%clk 0:00:02.7]} 63... Kb5
{[%clk 0:00:36.4]} 64. Ke2 {[%clk 0:00:03.4]} 64... Kxa5 {[%clk 0:00:37.3]} 65.
Kd2 {[%clk 0:00:04]} 65... Kb4 {[%clk 0:00:38.2]} 66. Kc2 {[%clk 0:00:04.6]}
66... a5 {[%clk 0:00:38]} 67. Kb1 {[%clk 0:00:05.3]} 67... Kb3 {[%clk
0:00:38.4]} 68. Ka1 {[%clk 0:00:06.2]} 68... a4 {[%clk 0:00:39.2]} 69. Kb1
{[%clk 0:00:06.8]} 69... a3 {[%clk 0:00:40.1]} 70. Ka1 {[%clk 0:00:07.5]} 70...
a2 {[%clk 0:00:41]} 1/2-1/2